fUSD/lending_fUSD_20250514
["ID","MTS","AMOUNT","RATE_DAILY","PERIOD"]
[361112283,1747265450652,-400.0,0.00011176,2]
[361112284,1747265450661,-400.0,0.00011176,2]
[361112285,1747265450672,-400.0,0.00011176,2]
[361112286,1747265450682,-400.0,0.00011176,2]
[361112287,1747265450691,-400.0,0.00011176,2]
[361112288,1747265450701,-400.0,0.00011176,2]
[361112289,1747265450710,-400.0,0.00011176,2]
[361112290,1747265450720,-400.0,0.00011177,2]
[361112291,1747265450729,-169.69575812,0.00011177,2]
[361112292,1747265450739,-400.0,0.00011177,2]
[361112293,1747265450748,-85.19150753,0.00011177,2]
[361112294,1747265454119,-526.0922008,0.00011175,2]
[361112295,1747265454143,-506.91,0.00011175,2]
[361112296,1747265454165,-400.0,0.00011175,2]
[361112297,1747265454188,-400.0,0.00011175,2]
[361112298,1747265454210,-400.0,0.00011176,2]
[361112299,1747265454234,-314.80849247,0.00011177,2]
[361112300,1747265454256,-400.0,0.00011177,2]
[361112301,1747265454278,-400.0,0.00011177,2]
[361112302,1747265454500,400.0,0.00011175,2]
[361112303,1747265455653,400.0,0.00011176,2]
[361112304,1747265455837,1562.7,0.00011175,2]
[361112305,1747265456012,400.0,0.00011175,2]
[361112306,1747265456043,400.0,0.00011175,2]
[361112307,1747265456080,1934.51,0.00011176,2]
[361112308,1747265457006,621.36,0.00011175,2]
[361112309,1747265458706,307.72253798,0.00011175,2]
[361112310,1747265458742,436.9,0.00011176,2]
[361112311,1747265458835,188.99676875,0.00011175,2]
[361112312,1747265458858,152.2615773,0.00011175,2]
[361112313,1747265468165,383.306369,7.945e-05,2]
[361112314,1747265496164,194.37,8.668e-05,2]
[361112315,1747265543414,-165.8,0.00011142,2]
[361112316,1747265543440,-200.0,0.00011159,2]
[361112317,1747265543462,-317.35552446,0.00011175,2]
[361112318,1747265543484,-400.0,0.00011175,2]
[361112319,1747265543507,-400.0,0.00011175,2]
[361112320,1747265543533,-400.0,0.00011175,2]
[361112321,1747265543555,-400.0,0.00011175,2]
[361112322,1747265543576,-400.0,0.00011175,2]
[361112323,1747265543608,-899.66,0.00011175,2]
[361112324,1747265543632,-400.0,0.00011175,2]
[361112325,1747265543656,-400.0,0.00011175,2]
[361112326,1747265543680,-963.56,0.00011175,2]
[361112327,1747265543703,-473.42,0.00011175,2]
[361112328,1747265543726,-400.0,0.00011175,2]
[361112329,1747265543751,-400.0,0.00011175,2]
[361112330,1747265543774,-400.0,0.00011175,2]
[361112331,1747265543799,-400.0,0.00011175,2]
[361112332,1747265543822,-777.16,0.00011175,2]
[361112333,1747265543846,-400.0,0.00011175,2]
[361112334,1747265543868,-400.0,0.00011175,2]
[361112335,1747265543889,-400.0,0.00011175,2]
[361112336,1747265543912,-603.04447554,0.00011175,2]
[361112337,1747265544750,-136.75552446,0.00011175,2]
[361112338,1747265544774,-400.0,0.00011175,2]
[361112339,1747265544797,-400.0,0.00011175,2]
[361112340,1747265544820,-536.73,0.00011175,2]
[361112341,1747265544843,-400.0,0.00011175,2]
[361112342,1747265544865,-4191.35,0.00011175,2]
[361112343,1747265544887,-400.0,0.00011175,2]
[361112344,1747265544910,-400.0,0.00011175,2]
[361112345,1747265544933,-3135.16447554,0.00011175,2]
[361112346,1747265545289,150.0,0.0001028,7]
[361112347,1747265545679,-451.94552446,0.00011175,2]
[361112348,1747265545702,-400.0,0.00011175,2]
[361112349,1747265545724,-448.19,0.00011175,2]
[361112350,1747265545746,-400.0,0.00011175,2]
[361112351,1747265545769,-733.98,0.00011175,2]
[361112352,1747265545791,-250.0,0.00011175,2]
[361112353,1747265545813,-400.0,0.00011175,2]
[361112354,1747265545835,-510.75,0.00011175,2]
[361112355,1747265545858,-4186.83,0.00011175,2]
[361112356,1747265545880,-1183.16,0.00011175,2]
[361112357,1747265545903,-400.0,0.00011175,2]
[361112358,1747265545927,-400.0,0.00011175,2]
[361112359,1747265545950,-235.14447554,0.00011175,2]
[361112360,1747265546271,-164.85552446,0.00011175,2]
[361112361,1747265546293,-1639.19,0.00011175,2]
[361112362,1747265546318,-542.01,0.00011175,2]
[361112363,1747265546341,-400.0,0.00011175,2]
[361112364,1747265546365,-400.0,0.00011175,2]
[361112365,1747265546389,-400.0,0.00011175,2]
[361112366,1747265546411,-400.0,0.00011175,2]
[361112367,1747265546433,-417.97,0.00011175,2]
[361112368,1747265546458,-400.0,0.00011175,2]
[361112369,1747265546480,-958.96,0.00011175,2]
[361112370,1747265546503,-400.0,0.00011175,2]
[361112371,1747265546526,-400.0,0.00011175,2]
[361112372,1747265546549,-400.0,0.00011175,2]
[361112373,1747265546572,-502.83,0.00011175,2]
[361112374,1747265546594,-400.0,0.00011175,2]
[361112375,1747265546615,-400.0,0.00011175,2]
[361112376,1747265546638,-400.0,0.00011175,2]
[361112377,1747265546659,-400.0,0.00011175,2]
[361112378,1747265546681,-440.75,0.00011175,2]
[361112379,1747265546703,-423.78,0.00011175,2]
[361112380,1747265546725,-109.65447554,0.00011175,2]
[361112381,1747265547450,-520.61552446,0.00011175,2]
[361112382,1747265547472,-409.27,0.00011175,2]
[361112383,1747265547495,-2246.39,0.00011175,2]
[361112384,1747265547518,-400.0,0.00011175,2]
[361112385,1747265547540,-638.81,0.00011175,2]
[361112386,1747265547561,-400.0,0.00011175,2]
[361112387,1747265547811,-400.0,0.00011176,2]
[361112388,1747265547834,-448.85,0.00011176,2]
[361112389,1747265547860,-400.0,0.00011176,2]
[361112390,1747265547883,-400.0,0.00011176,2]
[361112391,1747265547905,-400.0,0.00011176,2]
[361112392,1747265547929,-605.01,0.00011176,2]
[361112393,1747265547951,-400.0,0.00011176,2]
[361112394,1747265547973,-400.0,0.00011176,2]
[361112395,1747265547996,-400.0,0.00011176,2]
[361112396,1747265548020,-658.52,0.00011176,2]
[361112397,1747265548043,-400.0,0.00011176,2]
[361112398,1747265548067,-472.53447554,0.00011176,2]
[361112399,1747265570997,-700.97,0.00011175,2]
[361112400,1747265571020,-400.0,0.00011175,2]
[361112401,1747265571043,-400.0,0.00011175,2]
[361112402,1747265571066,-666.29,0.00011175,2]
[361112403,1747265571088,-210.30888191,0.00011175,2]
[361112404,1747265571110,-1156.35,0.00011175,2]
[361112405,1747265571132,-400.0,0.00011175,2]
[361112406,1747265571154,-400.0,0.00011175,2]
[361112407,1747265571176,-400.0,0.00011175,2]
[361112408,1747265571198,-400.0,0.00011175,2]
[361112409,1747265571220,-511.28,0.00011175,2]
[361112410,1747265571243,-400.0,0.00011175,2]
[361112411,1747265571266,-2916.17,0.00011175,2]
[361112412,1747265571289,-400.0,0.00011175,2]
[361112413,1747265571313,-400.0,0.00011175,2]
[361112414,1747265571336,-238.63111809,0.00011175,2]
[361112415,1747265572735,-673.46,0.00010765,2]
[361112416,1747265572758,-630.96888191,0.00011175,2]
[361112417,1747265572781,-400.0,0.00011175,2]
[361112418,1747265572804,-593.06,0.00011175,2]
[361112419,1747265572826,-4092.41,0.00011175,2]
[361112420,1747265572850,-933.99552446,0.00011176,2]
[361112421,1747265572873,-400.0,0.00011176,2]
[361112422,1747265572896,-665.84,0.00011176,2]
[361112423,1747265572917,-400.0,0.00011176,2]
[361112424,1747265572939,-1210.26559363,0.00011176,2]
[361112425,1747265577555,-2173.93,0.00011175,2]
[361112426,1747265577576,-400.0,0.00011175,2]
[361112427,1747265577597,-400.0,0.00011175,2]
[361112428,1747265577618,-400.0,0.00011175,2]
[361112429,1747265577641,-400.0,0.00011175,2]
[361112430,1747265577664,-418.74440637,0.00011176,2]
[361112431,1747265577685,-406.91,0.00011176,2]
[361112432,1747265577707,-400.0,0.00011176,2]
[361112433,1747265577730,-473.23,0.00011176,2]
[361112434,1747265577752,-455.37,0.00011176,2]
[361112435,1747265577774,-400.0,0.00011176,2]
[361112436,1747265577796,-642.85,0.00011176,2]
[361112437,1747265577818,-460.07,0.00011176,2]
[361112438,1747265577840,-400.0,0.00011176,2]
[361112439,1747265577864,-420.89,0.00011176,2]
[361112440,1747265577885,-400.0,0.00011176,2]
[361112441,1747265577906,-400.0,0.00011176,2]
[361112442,1747265577927,-948.00559363,0.00011176,2]
[361112443,1747265592973,-405.34,0.00011175,2]
[361112444,1747265592996,-400.0,0.00011175,2]
[361112445,1747265593017,-9194.66,0.00011175,2]
[361112446,1747265624178,-4629.1,0.00011175,2]
[361112447,1747265624200,-38.9,0.00011175,2]
[361112448,1747265738856,450.0,0.0001,2]
[361112456,1747266608471,194.37,8.03e-05,2]
[361112457,1747266609333,150.0,0.00010038,7]
[361112461,1747266632347,-200.0,0.00010062,2]
[361112462,1747266632360,-837.37,0.00010132,2]
[361112463,1747266632370,-1200.0,0.0001022,2]
[361112465,1747266632380,-300.0,0.0001022,2]
[361112467,1747266632390,-2240.93,0.00010221,2]
[361112468,1747266632429,-404.4750197,0.00010221,2]
[361112495,1747266638261,-372.87803105,0.00010221,2]
[361112504,1747266640482,-20881.71694925,0.00010221,2]
[361112505,1747266640492,-183.5,0.00010287,2]
[361112506,1747266640501,-1000.0,0.00010345,2]
[361112507,1747266640511,-1168.27099581,0.00010415,2]
[361112514,1747266642848,-1310.29847379,0.00010415,2]
[361112523,1747266645337,-629.23687052,0.00010415,2]
[361112524,1747266645350,-909.65588044,0.00010415,2]
[361112525,1747266645362,-1695.08233101,0.00010415,2]
[361112526,1747266645373,-5515.8,0.00010415,2]
[361112528,1747266646014,-2556.32544843,0.00010415,2]
[361112529,1747266646034,-6648.44,0.00010441,2]
[361112530,1747266646044,-171.70204414,0.00010512,2]
[361112531,1747266646055,-3783.24795586,0.00010512,2]
[361112532,1747266646065,-2240.4,0.00010513,2]
[361112533,1747266646074,-1036.2,0.00010564,2]
[361112534,1747266646083,-500.0,0.00010566,2]
[361112535,1747266646093,-150.0,0.00010597,2]
[361112536,1747266646102,-150.0,0.00010639,2]
[361112537,1747266646112,-250.0,0.00010657,2]
[361112538,1747266646121,-1263.92,0.00010678,2]
[361112539,1747266646131,-150.0,0.00010698,2]
[361112540,1747266646141,-1122.47,0.00010705,2]
[361112541,1747266646150,-3626.31,0.00010733,2]
[361112542,1747266646159,-207.4,0.00010741,2]
[361112543,1747266646169,-164.92,0.00010778,2]
[361112544,1747266646179,-150.0,0.00010787,2]
[361112545,1747266646188,-1156.61,0.000108,2]
[361112546,1747266646198,-1157.11,0.00010878,2]
[361112547,1747266646208,-1157.11,0.00010878,2]
[361112548,1747266646220,-450.3,0.00010878,2]
[361112549,1747266646231,-1157.11,0.00010878,2]
[361112550,1747266646242,-1157.11,0.00010978,2]
[361112551,1747266646251,-1157.11,0.00010978,2]
[361112552,1747266646261,-150.0,0.00011018,2]
[361112553,1747266646271,-150.0,0.00011066,2]
[361112554,1747266646280,-200.0,0.00011068,2]
[361112555,1747266646290,-200.0,0.00011068,2]
[361112556,1747266646299,-4766.61580677,0.00011099,2]
[361112557,1747266646308,-150.0,0.00011147,2]
[361112558,1747266646318,-151.0,0.00011168,2]
[361112559,1747266646329,-400.0,0.00011175,2]
[361112560,1747266646339,-400.0,0.00011175,2]
[361112561,1747266646348,-400.0,0.00011175,2]
[361112562,1747266646358,-400.0,0.00011175,2]
[361112564,1747266646368,-400.0,0.00011175,2]
[361112565,1747266646377,-400.0,0.00011175,2]
[361112566,1747266646386,-152.68445046,0.00011175,2]
[361112567,1747266646395,-400.0,0.00011175,2]
[361112568,1747266646404,-170.90429434,0.00011175,2]
[361112570,1747266646474,-229.09570566,0.00011175,2]
[361112571,1747266646484,-400.0,0.00011175,2]
[361112572,1747266646494,-400.0,0.00011175,2]
[361112573,1747266646504,-400.0,0.00011175,2]
[361112574,1747266646513,-400.0,0.00011175,2]
[361112575,1747266646525,-400.0,0.00011175,2]
[361112576,1747266646535,-400.0,0.00011175,2]
[361112577,1747266646545,-200.0,0.00011175,2]
[361112578,1747266646554,-400.0,0.00011175,2]
[361112579,1747266646564,-400.0,0.00011175,2]
[361112580,1747266646574,-400.0,0.00011175,2]
[361112582,1747266646583,-400.0,0.00011175,2]
[361112584,1747266646592,-400.0,0.00011175,2]
[361112585,1747266646601,-400.0,0.00011175,2]
[361112586,1747266646611,-400.0,0.00011175,2]
[361112587,1747266646620,-356.44,0.00011175,2]
[361112588,1747266646630,-400.0,0.00011175,2]
[361112589,1747266646639,-400.0,0.00011175,2]
[361112590,1747266646649,-406.28,0.00011175,2]
[361112591,1747266646659,-400.0,0.00011175,2]
[361112592,1747266646669,-400.0,0.00011175,2]
[361112593,1747266646679,-400.0,0.00011175,2]
[361112594,1747266646689,-400.0,0.00011175,2]
[361112595,1747266646698,-400.0,0.00011175,2]
[361112596,1747266646708,-846.93,0.00011175,2]
[361112597,1747266646717,-73.01579452,0.00011175,2]
[361112598,1747266647209,-326.98420548,0.00011175,2]
[361112599,1747266647219,-400.0,0.00011175,2]
[361112600,1747266647230,-525.98,0.00011175,2]
[361112601,1747266647240,-400.0,0.00011175,2]
[361112602,1747266647250,-400.0,0.00011175,2]
[361112603,1747266647261,-400.0,0.00011175,2]
[361112604,1747266647271,-589.5,0.00011175,2]
[361112605,1747266647281,-400.0,0.00011175,2]
[361112606,1747266647290,-400.0,0.00011175,2]
[361112607,1747266647300,-400.0,0.00011175,2]
[361112608,1747266647309,-476.33249303,0.00011175,2]
[361112609,1747266647319,-400.0,0.00011175,2]
[361112610,1747266647328,-415.57,0.00011175,2]
[361112611,1747266647337,-400.0,0.00011175,2]
[361112612,1747266647347,-400.0,0.00011175,2]
[361112613,1747266647356,-400.0,0.00011175,2]
[361112614,1747266647365,-400.0,0.00011175,2]
[361112615,1747266647375,-400.0,0.00011175,2]
[361112616,1747266647384,-418.69,0.00011175,2]
[361112617,1747266647393,-400.0,0.00011175,2]
[361112618,1747266647402,-400.0,0.00011175,2]
[361112619,1747266647412,-647.75,0.00011175,2]
[361112620,1747266647421,-400.0,0.00011175,2]
[361112621,1747266647431,-400.0,0.00011175,2]
[361112622,1747266647440,-519.2,0.00011175,2]
[361112623,1747266647450,-400.0,0.00011175,2]
[361112624,1747266647459,-400.0,0.00011175,2]
[361112625,1747266647468,-400.0,0.00011175,2]
[361112626,1747266647478,-400.0,0.00011175,2]
[361112627,1747266647487,-625.42,0.00011175,2]
[361112628,1747266647496,-400.0,0.00011175,2]
[361112629,1747266647506,-1561.14,0.00011175,2]
[361112630,1747266647515,-400.0,0.00011175,2]
[361112631,1747266647527,-400.0,0.00011175,2]
[361112632,1747266647536,-400.0,0.00011175,2]
[361112633,1747266647546,-453.51,0.00011175,2]
[361112634,1747266647555,-436.39,0.00011175,2]
[361112635,1747266647566,-400.0,0.00011175,2]
[361112636,1747266647575,-616.06,0.00011175,2]
[361112637,1747266647585,-400.0,0.00011175,2]
[361112638,1747266647594,-400.0,0.00011175,2]
[361112639,1747266647604,-400.0,0.00011175,2]
[361112640,1747266647614,-400.0,0.00011175,2]
[361112641,1747266647623,-400.0,0.00011175,2]
[361112642,1747266647632,-440.9,0.00011175,2]
[361112643,1747266647642,-541.3,0.00011175,2]
[361112644,1747266647651,-400.0,0.00011175,2]
[361112645,1747266647660,-403.35,0.00011175,2]
[361112646,1747266647669,-400.0,0.00011175,2]
[361112647,1747266647678,-150.0,0.00011175,2]
[361112648,1747266647687,-400.0,0.00011175,2]
[361112649,1747266647696,-400.0,0.00011175,2]
[361112650,1747266647705,-1135.03,0.00011175,2]
[361112651,1747266647714,-426.23,0.00011175,2]
[361112652,1747266647723,-400.0,0.00011175,2]
[361112653,1747266647732,-488.12,0.00011175,2]
[361112654,1747266647742,-400.0,0.00011175,2]
[361112655,1747266647751,-357.00126924,0.00011175,2]
[361112656,1747266647760,-400.0,0.00011175,2]
[361112657,1747266647769,-400.0,0.00011175,2]
[361112658,1747266647778,-418.08,0.00011175,2]
[361112659,1747266647787,-709.18,0.00011175,2]
[361112660,1747266647796,-400.0,0.00011175,2]
[361112661,1747266647805,-400.0,0.00011175,2]
[361112662,1747266647816,-155.12275606,0.00011175,2]
[361112663,1747266647829,-292.67938911,0.00011175,2]
[361112664,1747266647841,-400.0,0.00011175,2]
[361112665,1747266647850,-436.62,0.00011175,2]
[361112666,1747266647858,-400.0,0.00011175,2]
[361112667,1747266647868,-400.0,0.00011175,2]
[361112668,1747266647877,-479.17,0.00011175,2]
[361112669,1747266647885,-400.0,0.00011175,2]
[361112670,1747266647895,-400.0,0.00011175,2]
[361112671,1747266647904,-400.0,0.00011175,2]
[361112672,1747266647913,-1129.08,0.00011175,2]
[361112673,1747266647922,-400.0,0.00011175,2]
[361112674,1747266647931,-400.0,0.00011175,2]
[361112675,1747266647941,-405.1,0.00011175,2]
[361112676,1747266647950,-400.0,0.00011175,2]
[361112677,1747266647960,-400.0,0.00011175,2]
[361112678,1747266647969,-1700.94,0.00011175,2]
[361112679,1747266647978,-400.0,0.00011175,2]
[361112680,1747266647988,-400.0,0.00011175,2]
[361112681,1747266647998,-400.0,0.00011175,2]
[361112682,1747266648008,-500.59,0.00011175,2]
[361112683,1747266648017,-496.94,0.00011175,2]
[361112684,1747266648027,-544.23,0.00011175,2]
[361112685,1747266648036,-400.0,0.00011175,2]
[361112686,1747266648046,-400.0,0.00011175,2]
[361112687,1747266648056,-400.0,0.00011175,2]
[361112688,1747266648066,-400.0,0.00011175,2]
[361112689,1747266648075,-476.07,0.00011175,2]
[361112690,1747266648085,-400.0,0.00011175,2]
[361112691,1747266648095,-400.0,0.00011175,2]
[361112692,1747266648105,-788.09,0.00011175,2]
[361112693,1747266648114,-565.31,0.00011175,2]
[361112694,1747266648123,-400.0,0.00011175,2]
[361112695,1747266648133,-400.0,0.00011175,2]
[361112696,1747266648142,-400.0,0.00011175,2]
[361112697,1747266648151,-400.0,0.00011175,2]
[361112698,1747266648161,-400.0,0.00011175,2]
[361112699,1747266648171,-400.0,0.00011175,2]
[361112700,1747266648180,-400.0,0.00011175,2]
[361112701,1747266648189,-400.0,0.00011175,2]
[361112702,1747266648198,-400.0,0.00011175,2]
[361112703,1747266648208,-400.0,0.00011175,2]
[361112704,1747266648217,-461.58,0.00011175,2]
[361112705,1747266648226,-580.75,0.00011175,2]
[361112706,1747266648236,-400.0,0.00011175,2]
[361112707,1747266648247,-340.55,0.00011175,2]
[361112708,1747266648256,-400.0,0.00011175,2]
[361112709,1747266648266,-400.0,0.00011175,2]
[361112710,1747266648275,-400.0,0.00011175,2]
[361112711,1747266648284,-400.0,0.00011175,2]
[361112712,1747266648294,-603.08,0.00011175,2]
[361112713,1747266648303,-400.0,0.00011175,2]
[361112714,1747266648312,-559.0,0.00011175,2]
[361112715,1747266648321,-400.0,0.00011175,2]
[361112716,1747266648331,-1568.73221815,0.00011176,2]
[361112717,1747266648340,-150.0,0.00011197,2]
[361112718,1747266648349,-3743.21,0.00011233,2]
[361112719,1747266648358,-420.0,0.00011239,2]
[361112720,1747266648367,-864.05076374,0.00011254,2]
[361112721,1747266648376,-250.0,0.00011261,2]
[361112722,1747266648386,-200.0,0.00011315,2]
[361112723,1747266648395,-150.0,0.00011318,2]
[361112724,1747266648404,-150.0,0.00011344,2]
[361112725,1747266648413,-400.0,0.00011348,2]
[361112726,1747266648422,-400.0,0.00011348,2]
[361112727,1747266648431,-1514.25,0.00011348,2]
[361112728,1747266648441,-692.42,0.00011348,2]
[361112729,1747266648450,-400.0,0.00011348,2]
[361112730,1747266648459,-725.64,0.00011348,2]
[361112731,1747266648468,-400.0,0.00011348,2]
[361112732,1747266648477,-481.87,0.00011348,2]
[361112733,1747266648486,-422.38,0.00011348,2]
[361112734,1747266648495,-638.52,0.00011348,2]
[361112735,1747266648504,-424.18,0.00011348,2]
[361112736,1747266648514,-833.37,0.00011348,2]
[361112737,1747266648527,-915.4,0.00011348,2]
[361112738,1747266648536,-599.23,0.00011348,2]
[361112739,1747266648546,-400.0,0.00011348,2]
[361112740,1747266648555,-400.0,0.00011348,2]
[361112741,1747266648564,-400.0,0.00011348,2]
[361112742,1747266648573,-1297.2,0.00011348,2]
[361112743,1747266648582,-597.62,0.00011348,2]
[361112744,1747266648590,-849.44,0.00011348,2]
[361112745,1747266648599,-731.83,0.00011348,2]
[361112746,1747266648609,-400.0,0.00011348,2]
[361112747,1747266648618,-569.4,0.00011348,2]
[361112748,1747266648627,-307.67451858,0.00011349,2]
[361112749,1747266648637,-150.0,0.00011365,2]
[361112750,1747266648646,-150.0,0.0001138,2]
[361112751,1747266648655,-150.0,0.00011445,2]
[361112752,1747266648665,-400.0,0.00011446,2]
[361112753,1747266648674,-400.0,0.00011446,2]
[361112754,1747266648683,-400.0,0.00011446,2]
[361112755,1747266648692,-400.0,0.00011446,2]
[361112756,1747266648702,-516.99230662,0.00011446,2]
[361112757,1747266648711,-400.0,0.00011446,2]
[361112758,1747266648720,-400.0,0.00011446,2]
[361112759,1747266648729,-204.06351425,0.00011446,2]
[361112760,1747266648738,-400.0,0.00011446,2]
[361112761,1747266648748,-460.50678016,0.00011446,2]
[361112762,1747266648757,-400.0,0.00011446,2]
[361112763,1747266648766,-355.6896416,0.00011446,2]
[361112764,1747266648775,-400.0,0.00011446,2]
[361112765,1747266648784,-400.0,0.00011446,2]
[361112766,1747266648792,-400.0,0.00011446,2]
[361112767,1747266648802,-400.0,0.00011446,2]
[361112768,1747266648811,-371.83850292,0.00011446,2]
[361112769,1747266648820,-250.0,0.00011446,2]
[361112770,1747266648829,-389.53677948,0.00011446,2]
[361112771,1747266648838,-400.0,0.00011446,2]
[361112772,1747266648848,-400.0,0.00011446,2]
[361112773,1747266648857,-537.91657312,0.00011446,2]
[361112774,1747266648866,-799.32,0.00011446,2]
[361112775,1747266648875,-150.0,0.00011446,2]
[361112776,1747266648884,-400.0,0.00011446,2]
[361112777,1747266648894,-375.74072014,0.00011446,2]
[361112778,1747266648903,-163.79456193,0.00011446,2]
[361112779,1747266648912,-400.0,0.00011446,2]
[361112780,1747266648921,-400.0,0.00011446,2]
[361112781,1747266648931,-400.0,0.00011446,2]
[361112782,1747266648942,-261.79504365,0.00011446,2]
[361112783,1747266648952,-400.0,0.00011446,2]
[361112784,1747266648962,-424.93310332,0.00011446,2]
[361112785,1747266648971,-907.29,0.00011446,2]
[361112786,1747266648980,-519.43,0.00011446,2]
[361112787,1747266648990,-381.99801575,0.00011446,2]
[361112788,1747266649000,-400.0,0.00011446,2]
[361112789,1747266649009,-1391.95,0.00011446,2]
[361112790,1747266649019,-392.0,0.00011446,2]
[361112791,1747266649028,-400.0,0.00011446,2]
[361112792,1747266649038,-400.0,0.00011446,2]
[361112793,1747266649048,-400.0,0.00011446,2]
[361112794,1747266649057,-400.0,0.00011446,2]
[361112795,1747266649066,-400.0,0.00011446,2]
[361112796,1747266649076,-400.0,0.00011446,2]
[361112797,1747266649085,-400.0,0.00011446,2]
[361112798,1747266649095,-400.0,0.00011446,2]
[361112799,1747266649104,-400.0,0.00011446,2]
[361112800,1747266649113,-400.0,0.00011446,2]
[361112801,1747266649123,-612.19,0.00011446,2]
[361112802,1747266649132,-400.0,0.00011446,2]
[361112803,1747266649142,-400.0,0.00011446,2]
[361112804,1747266649151,-400.0,0.00011446,2]
[361112805,1747266649160,-400.0,0.00011446,2]
[361112806,1747266649169,-400.0,0.00011446,2]
[361112807,1747266649178,-400.0,0.00011446,2]
[361112808,1747266649188,-673.78,0.00011446,2]
[361112809,1747266649197,-818.67,0.00011446,2]
[361112810,1747266649206,-400.0,0.00011446,2]
[361112811,1747266649216,-400.0,0.00011446,2]
[361112812,1747266649226,-400.0,0.00011446,2]
[361112813,1747266649235,-400.0,0.00011446,2]
[361112814,1747266649245,-400.0,0.00011446,2]
[361112815,1747266649255,-400.0,0.00011446,2]
[361112816,1747266649264,-400.0,0.00011446,2]
[361112817,1747266649274,-401.89,0.00011446,2]
[361112818,1747266649283,-400.0,0.00011446,2]
[361112819,1747266649292,-400.0,0.00011446,2]
[361112820,1747266649302,-490.45,0.00011446,2]
[361112821,1747266649311,-400.0,0.00011446,2]
[361112822,1747266649320,-400.0,0.00011446,2]
[361112823,1747266649329,-400.0,0.00011446,2]
[361112824,1747266649338,-404.27798344,0.00011446,2]
[361112825,1747266649347,-425.61560095,0.00011446,2]
[361112826,1747266649357,-443.67,0.00011446,2]
[361112827,1747266649366,-400.0,0.00011446,2]
[361112828,1747266649375,-430.93701252,0.00011446,2]
[361112829,1747266649384,-2083.35,0.00011446,2]
[361112830,1747266649394,-462.42750995,0.00011446,2]
[361112831,1747266649405,-400.0,0.00011446,2]
[361112832,1747266649414,-1140.89,0.00011446,2]
[361112833,1747266649423,-400.0,0.00011446,2]
[361112834,1747266649432,-400.0,0.00011446,2]
[361112835,1747266649442,-400.0,0.00011446,2]
[361112836,1747266649451,-400.0,0.00011446,2]
[361112837,1747266649462,-400.0,0.00011446,2]
[361112838,1747266649471,-400.0,0.00011446,2]
[361112839,1747266649480,-400.0,0.00011446,2]
[361112840,1747266649490,-400.0,0.00011446,2]
[361112841,1747266649499,-400.0,0.00011446,2]
[361112842,1747266649509,-500.0,0.00011446,2]
[361112843,1747266649519,-3637.53,0.00011446,2]
[361112844,1747266649531,-400.0,0.00011446,2]
[361112845,1747266649540,-400.0,0.00011446,2]
[361112846,1747266649550,-500.0,0.00011446,2]
[361112847,1747266649560,-47198.75,0.00011446,2]